[Event "Titled Tuesday Blitz February 15 Late 2022"]
[White "Kavyev, Ruslan"]
[Black "Mladenovic, Stefan"]
[WhiteFideId "34110981"]
[BlackFideId "942227"]
[WhiteElo "2182"]
[BlackElo "2355"]
[Result "1-0"]
[Round "11"]
[TimeControl "180+1"]
[Date "2022.02.15"]
[WhiteClock "0:00:51"]
[BlackClock "0:00:02"]

1. d4 {[%clk 0:03:00]}  Nf6 {[%clk 0:02:58]} 2. c4 {[%clk 0:02:57]}  e6 {[%clk 0:02:58]} 3. g3 {[%clk 0:02:55]}  d5 {[%clk 0:02:57]} 4. Nf3 {[%clk 0:02:56]}  Be7 {[%clk 0:02:56]} 5. Bg2 {[%clk 0:02:56]}  O-O {[%clk 0:02:56]} 6. Qc2 {[%clk 0:02:57]}  dxc4 {[%clk 0:02:46]} 7. Qxc4 {[%clk 0:02:58]}  Nbd7 {[%clk 0:02:37]} 8. Bf4 {[%clk 0:02:56]}  c5 {[%clk 0:02:37]} 9. O-O {[%clk 0:02:55]}  Nb6 {[%clk 0:02:34]} 10. Qd3 {[%clk 0:02:40]}  cxd4 {[%clk 0:02:28]} 11. Qxd4 {[%clk 0:02:36]}  Nbd5 {[%clk 0:02:22]} 12. Nc3 {[%clk 0:02:33]}  Nxf4 {[%clk 0:02:16]} 13. gxf4 {[%clk 0:02:31]}  Qxd4 {[%clk 0:02:11]} 14. Nxd4 {[%clk 0:02:31]}  Rb8 {[%clk 0:02:01]} 15. Rfd1 {[%clk 0:02:30]}  Bd7 {[%clk 0:01:45]} 16. Ndb5 {[%clk 0:02:27]}  a6 {[%clk 0:01:38]} 17. Nd6 {[%clk 0:02:28]}  b5 {[%clk 0:01:32]} 18. Rac1 {[%clk 0:02:23]}  b4 {[%clk 0:01:24]} 19. Nce4 {[%clk 0:02:23]}  Nd5 {[%clk 0:01:17]} 20. Nc5 {[%clk 0:02:05]}  Bc6 {[%clk 0:00:50]} 21. Nxe6 {[%clk 0:01:57]}  fxe6 {[%clk 0:00:42]} 22. Rxc6 {[%clk 0:01:57]}  Nxf4 {[%clk 0:00:41]} 23. Bf3 {[%clk 0:01:41]}  Rbd8 {[%clk 0:00:34]} 24. e3 {[%clk 0:01:38]}  Nh3+ {[%clk 0:00:31]} 25. Kg2 {[%clk 0:01:38]}  Ng5 {[%clk 0:00:28]} 26. Bg4 {[%clk 0:01:37]}  Bxd6 {[%clk 0:00:23]} 27. Rdxd6 {[%clk 0:01:34]}  Rxd6 {[%clk 0:00:19]} 28. Rxd6 {[%clk 0:01:34]}  Rxf2+ {[%clk 0:00:13]} 29. Kxf2 {[%clk 0:01:34]}  Ne4+ {[%clk 0:00:14]} 30. Ke2 {[%clk 0:01:29]}  Nxd6 {[%clk 0:00:15]} 31. Bxe6+ {[%clk 0:01:29]}  Kf8 {[%clk 0:00:15]} 32. Kd3 {[%clk 0:01:29]}  Ke7 {[%clk 0:00:16]} 33. Bg8 {[%clk 0:01:29]}  h6 {[%clk 0:00:14]} 34. Kd4 {[%clk 0:01:26]}  Nf5+ {[%clk 0:00:11]} 35. Kc5 {[%clk 0:01:18]}  g5 {[%clk 0:00:04]} 36. e4 {[%clk 0:01:14]}  Nd6 {[%clk 0:00:02]} 37. e5 {[%clk 0:01:14]}  Ne4+ {[%clk 0:00:02]} 38. Kxb4 {[%clk 0:01:13]}  g4 {[%clk 0:00:02]} 39. Bd5 {[%clk 0:01:11]}  Nf2 {[%clk 0:00:02]} 40. Ka5 {[%clk 0:01:10]}  Nd3 {[%clk 0:00:03]} 41. Kxa6 {[%clk 0:01:07]}  Nxb2 {[%clk 0:00:02]} 42. Kb5 {[%clk 0:01:06]}  Nd3 {[%clk 0:00:01]} 43. e6 {[%clk 0:01:04]}  Ne5 {[%clk 0:00:02]} 44. a4 {[%clk 0:01:04]}  Kd6 {[%clk 0:00:03]} 45. a5 {[%clk 0:01:03]}  Ng6 {[%clk 0:00:02]} 46. a6 {[%clk 0:01:01]}  Ne7 {[%clk 0:00:01]} 47. a7 {[%clk 0:01:01]}  Nxd5 {[%clk 0:00:01]} 48. Ka6 {[%clk 0:00:53]}  Kxe6 {[%clk 0:00:02]} 49. Kb7 {[%clk 0:00:52]}  Kd6 {[%clk 0:00:02]} 50. a8=Q {[%clk 0:00:53]}  h5 {[%clk 0:00:02]} 51. Qh8 {[%clk 0:00:51]} 1-0


[Site "https://www.chess.com"]

[Event "Titled Tuesday Blitz February 15 Late 2022"]
[White "Kosteniuk, Alexandra"]
[Black "Rosen, Eric"]
[WhiteFideId "4128125"]
[BlackFideId "2032562"]
[WhiteElo "2469"]
[BlackElo "2362"]
[Result "1-0"]
[Round "11"]
[TimeControl "180+1"]
[Date "2022.02.15"]
[WhiteClock "0:00:18"]
[BlackClock "0:00:07"]

1. e4 {[%clk 0:03:00]}  c5 {[%clk 0:02:49]} 2. c3 {[%clk 0:03:00]}  d5 {[%clk 0:02:48]} 3. exd5 {[%clk 0:03:00]}  Qxd5 {[%clk 0:02:49]} 4. d4 {[%clk 0:03:00]}  Nf6 {[%clk 0:02:50]} 5. Nf3 {[%clk 0:03:01]}  e6 {[%clk 0:02:49]} 6. Be2 {[%clk 0:02:58]}  Nc6 {[%clk 0:02:48]} 7. O-O {[%clk 0:02:57]}  Be7 {[%clk 0:02:47]} 8. c4 {[%clk 0:02:56]}  Qd8 {[%clk 0:02:44]} 9. dxc5 {[%clk 0:02:56]}  Qxd1 {[%clk 0:02:42]} 10. Rxd1 {[%clk 0:02:56]}  Bxc5 {[%clk 0:02:43]} 11. Nc3 {[%clk 0:02:56]}  b6 {[%clk 0:02:14]} 12. a3 {[%clk 0:02:48]}  Bb7 {[%clk 0:02:09]} 13. b4 {[%clk 0:02:47]}  Be7 {[%clk 0:02:09]} 14. Nb5 {[%clk 0:02:41]}  O-O {[%clk 0:02:07]} 15. Nd6 {[%clk 0:02:40]}  Bxd6 {[%clk 0:01:53]} 16. Rxd6 {[%clk 0:02:41]}  Rfd8 {[%clk 0:01:53]} 17. Rxd8+ {[%clk 0:02:37]}  Rxd8 {[%clk 0:01:53]} 18. Bb2 {[%clk 0:02:36]}  a5 {[%clk 0:01:26]} 19. b5 {[%clk 0:02:27]}  Nb8 {[%clk 0:01:19]} 20. Ne5 {[%clk 0:02:10]}  Ne4 {[%clk 0:01:11]} 21. f3 {[%clk 0:01:57]}  Nc5 {[%clk 0:01:04]} 22. Rd1 {[%clk 0:01:53]}  Rxd1+ {[%clk 0:00:59]} 23. Bxd1 {[%clk 0:01:53]}  f6 {[%clk 0:00:58]} 24. Ng4 {[%clk 0:01:50]}  e5 {[%clk 0:00:49]} 25. Bc2 {[%clk 0:01:47]}  Bc8 {[%clk 0:00:41]} 26. Ne3 {[%clk 0:01:42]}  Be6 {[%clk 0:00:41]} 27. Kf2 {[%clk 0:01:38]}  Nbd7 {[%clk 0:00:41]} 28. g3 {[%clk 0:01:37]}  Kf7 {[%clk 0:00:39]} 29. f4 {[%clk 0:01:35]}  exf4 {[%clk 0:00:26]} 30. gxf4 {[%clk 0:01:36]}  g6 {[%clk 0:00:26]} 31. Bd4 {[%clk 0:01:27]}  Ke7 {[%clk 0:00:25]} 32. h4 {[%clk 0:01:24]}  f5 {[%clk 0:00:15]} 33. Ke2 {[%clk 0:01:14]}  Nf6 {[%clk 0:00:14]} 34. Bxc5+ {[%clk 0:01:12]}  bxc5 {[%clk 0:00:15]} 35. Bd3 {[%clk 0:01:05]}  Ne8 {[%clk 0:00:13]} 36. Kd2 {[%clk 0:00:59]}  Nd6 {[%clk 0:00:13]} 37. Kc3 {[%clk 0:01:00]}  Kd7 {[%clk 0:00:13]} 38. Nd1 {[%clk 0:00:56]}  h6 {[%clk 0:00:09]} 39. Nf2 {[%clk 0:00:55]}  Kc7 {[%clk 0:00:07]} 40. Nh1 {[%clk 0:00:48]}  Ne8 {[%clk 0:00:05]} 41. Ng3 {[%clk 0:00:47]}  Nf6 {[%clk 0:00:05]} 42. Be2 {[%clk 0:00:40]}  Bc8 {[%clk 0:00:05]} 43. Kd3 {[%clk 0:00:29]}  Kd6 {[%clk 0:00:05]} 44. Ke3 {[%clk 0:00:29]}  Bb7 {[%clk 0:00:06]} 45. Bd3 {[%clk 0:00:29]}  Ba8 {[%clk 0:00:05]} 46. h5 {[%clk 0:00:27]}  Nxh5 {[%clk 0:00:02]} 47. Nxh5 {[%clk 0:00:27]}  gxh5 {[%clk 0:00:03]} 48. Bxf5 {[%clk 0:00:28]}  h4 {[%clk 0:00:03]} 49. Bg4 {[%clk 0:00:23]}  Ke7 {[%clk 0:00:02]} 50. Bc8 {[%clk 0:00:22]}  Bg2 {[%clk 0:00:02]} 51. b6 {[%clk 0:00:20]}  Kd8 {[%clk 0:00:02]} 52. b7 {[%clk 0:00:18]}  Kc7 {[%clk 0:00:02]} 53. f5 {[%clk 0:00:18]}  Bc6 {[%clk 0:00:02]} 54. f6 {[%clk 0:00:17]}  Be8 {[%clk 0:00:01]} 55. Kf4 {[%clk 0:00:14]}  h3 {[%clk 0:00:01]} 56. Bxh3 {[%clk 0:00:13]}  Bf7 {[%clk 0:00:01]} 57. Ke5 {[%clk 0:00:13]}  Kxb7 {[%clk 0:00:01]} 58. Be6 {[%clk 0:00:13]}  Bg6 {[%clk 0:00:02]} 59. f7 {[%clk 0:00:13]}  Bxf7 {[%clk 0:00:03]} 60. Bxf7 {[%clk 0:00:14]}  Kc6 {[%clk 0:00:03]} 61. Ke6 {[%clk 0:00:13]}  Kc7 {[%clk 0:00:03]} 62. Be8 {[%clk 0:00:13]}  Kb6 {[%clk 0:00:02]} 63. Kd6 {[%clk 0:00:13]}  a4 {[%clk 0:00:03]} 64. Kd5 {[%clk 0:00:13]}  Ka5 {[%clk 0:00:03]} 65. Bh5 {[%clk 0:00:14]}  Kb6 {[%clk 0:00:03]} 66. Kd6 {[%clk 0:00:14]}  Ka5 {[%clk 0:00:04]} 67. Kxc5 {[%clk 0:00:15]}  Ka6 {[%clk 0:00:05]} 68. Kb4 {[%clk 0:00:15]}  Kb6 {[%clk 0:00:05]} 69. Kxa4 {[%clk 0:00:15]}  Ka6 {[%clk 0:00:06]} 70. Kb3 {[%clk 0:00:16]}  Ka5 {[%clk 0:00:07]} 71. Kc3 {[%clk 0:00:17]}  Kb6 {[%clk 0:00:06]} 72. Kd4 {[%clk 0:00:18]}  Kc6 {[%clk 0:00:07]} 73. c5 {[%clk 0:00:18]} 1-0


[Site "https://www.chess.com"]

[Event "Titled Tuesday Blitz February 15 Late 2022"]
[White "Kujawski, Adam"]
[Black "Stankovic, Ivan G"]
[WhiteFideId "1100920"]
[BlackFideId "902837"]
[WhiteElo "2053"]
[BlackElo "2195"]
[Result "0-1"]
[Round "11"]
[TimeControl "180+1"]
[Date "2022.02.16"]
[WhiteClock "0:00:01"]
[BlackClock "0:00:51"]

1. e4 {[%clk 0:03:00]}  c5 {[%clk 0:02:59]} 2. Nf3 {[%clk 0:03:00]}  Nc6 {[%clk 0:02:52]} 3. Nc3 {[%clk 0:02:58]}  g6 {[%clk 0:02:48]} 4. Bb5 {[%clk 0:02:57]}  Bg7 {[%clk 0:02:48]} 5. O-O {[%clk 0:02:56]}  Nd4 {[%clk 0:02:39]} 6. Nxd4 {[%clk 0:02:55]}  cxd4 {[%clk 0:02:39]} 7. Ne2 {[%clk 0:02:55]}  a6 {[%clk 0:02:39]} 8. Ba4 {[%clk 0:02:45]}  b5 {[%clk 0:02:37]} 9. Bb3 {[%clk 0:02:44]}  Bb7 {[%clk 0:02:37]} 10. d3 {[%clk 0:02:39]}  d6 {[%clk 0:02:38]} 11. c3 {[%clk 0:02:35]}  dxc3 {[%clk 0:02:37]} 12. Nxc3 {[%clk 0:02:23]}  Nf6 {[%clk 0:02:36]} 13. Be3 {[%clk 0:01:56]}  O-O {[%clk 0:02:35]} 14. f3 {[%clk 0:01:53]}  Rc8 {[%clk 0:02:24]} 15. a4 {[%clk 0:01:42]}  b4 {[%clk 0:02:21]} 16. Ne2 {[%clk 0:01:40]}  a5 {[%clk 0:02:19]} 17. Qd2 {[%clk 0:01:33]}  d5 {[%clk 0:02:16]} 18. Rfd1 {[%clk 0:01:26]}  Ba6 {[%clk 0:01:47]} 19. Rac1 {[%clk 0:01:09]}  Rxc1 {[%clk 0:01:45]} 20. Qxc1 {[%clk 0:01:00]}  dxe4 {[%clk 0:01:32]} 21. dxe4 {[%clk 0:00:57]}  Qa8 {[%clk 0:01:31]} 22. Nd4 {[%clk 0:00:47]}  Rc8 {[%clk 0:01:29]} 23. Qb1 {[%clk 0:00:35]}  Nd7 {[%clk 0:01:22]} 24. Ne6 {[%clk 0:00:24]}  Nc5 {[%clk 0:01:10]} 25. Nxc5 {[%clk 0:00:22]}  Qa7 {[%clk 0:01:03]} 26. Nxa6 {[%clk 0:00:16]}  Qxe3+ {[%clk 0:01:03]} 27. Kh1 {[%clk 0:00:17]}  Qxb3 {[%clk 0:01:03]} 28. h3 {[%clk 0:00:09]}  Qc4 {[%clk 0:01:00]} 29. Qd3 {[%clk 0:00:06]}  Bxb2 {[%clk 0:00:56]} 30. Qxc4 {[%clk 0:00:03]}  Rxc4 {[%clk 0:00:55]} 31. Rd8+ {[%clk 0:00:03]}  Kg7 {[%clk 0:00:55]} 32. Nb8 {[%clk 0:00:01]}  Be5 {[%clk 0:00:51]} 0-1


[Site "https://www.chess.com"]

[Event "Titled Tuesday Blitz February 15 Late 2022"]
[White "Kushko, Dmitriy"]
[Black "Remizov, Yaroslav"]
[WhiteFideId "14162261"]
[BlackFideId "34134015"]
[WhiteElo "2225"]
[BlackElo "2360"]
[Result "0-1"]
[Round "11"]
[TimeControl "180+1"]
[Date "2022.02.15"]
[WhiteClock "0:00:03"]
[BlackClock "0:00:17"]

1. Nf3 {[%clk 0:03:00]}  e6 {[%clk 0:02:59]} 2. g3 {[%clk 0:03:00]}  a6 {[%clk 0:03:00]} 3. Bg2 {[%clk 0:03:00]}  c5 {[%clk 0:03:00]} 4. O-O {[%clk 0:03:00]}  d6 {[%clk 0:03:01]} 5. c4 {[%clk 0:02:58]}  Nf6 {[%clk 0:03:00]} 6. d4 {[%clk 0:02:59]}  cxd4 {[%clk 0:02:56]} 7. Nxd4 {[%clk 0:03:00]}  Be7 {[%clk 0:02:56]} 8. Nc3 {[%clk 0:03:00]}  O-O {[%clk 0:02:56]} 9. e4 {[%clk 0:02:59]}  Nc6 {[%clk 0:02:49]} 10. Be3 {[%clk 0:02:53]}  Bd7 {[%clk 0:02:48]} 11. Qe2 {[%clk 0:02:49]}  Rc8 {[%clk 0:02:46]} 12. Rac1 {[%clk 0:02:47]}  Qc7 {[%clk 0:02:40]} 13. h3 {[%clk 0:02:35]}  Qb8 {[%clk 0:02:39]} 14. g4 {[%clk 0:02:32]}  Ne8 {[%clk 0:02:30]} 15. f4 {[%clk 0:02:19]}  b5 {[%clk 0:02:26]} 16. cxb5 {[%clk 0:02:16]}  Nxd4 {[%clk 0:02:26]} 17. Bxd4 {[%clk 0:02:16]}  axb5 {[%clk 0:02:27]} 18. a3 {[%clk 0:01:47]}  b4 {[%clk 0:02:25]} 19. axb4 {[%clk 0:01:47]}  Qxb4 {[%clk 0:02:26]} 20. Rcd1 {[%clk 0:01:46]}  Nc7 {[%clk 0:02:18]} 21. Qf2 {[%clk 0:01:16]}  Nb5 {[%clk 0:02:14]} 22. Nxb5 {[%clk 0:01:16]}  Bxb5 {[%clk 0:02:15]} 23. Rfe1 {[%clk 0:01:17]}  Ba4 {[%clk 0:02:12]} 24. Rd2 {[%clk 0:01:10]}  Bh4 {[%clk 0:02:11]} 25. Qxh4 {[%clk 0:01:01]}  Qxd2 {[%clk 0:02:11]} 26. Bc3 {[%clk 0:00:42]}  Rxc3 {[%clk 0:02:08]} 27. bxc3 {[%clk 0:00:40]}  Qxc3 {[%clk 0:02:09]} 28. e5 {[%clk 0:00:37]}  dxe5 {[%clk 0:02:03]} 29. fxe5 {[%clk 0:00:33]}  h6 {[%clk 0:01:59]} 30. Rf1 {[%clk 0:00:19]}  Qxe5 {[%clk 0:01:57]} 31. Qf2 {[%clk 0:00:19]}  Qc7 {[%clk 0:01:53]} 32. Qd4 {[%clk 0:00:17]}  Bb5 {[%clk 0:01:45]} 33. Rb1 {[%clk 0:00:17]}  Rb8 {[%clk 0:01:35]} 34. Qb4 {[%clk 0:00:15]}  e5 {[%clk 0:01:17]} 35. Bd5 {[%clk 0:00:05]}  Qb6+ {[%clk 0:01:10]} 36. Kh2 {[%clk 0:00:02]}  Qf2+ {[%clk 0:01:08]} 37. Bg2 {[%clk 0:00:03]}  Qb6 {[%clk 0:01:04]} 38. Qb2 {[%clk 0:00:02]}  Qd6 {[%clk 0:00:57]} 39. Bf1 {[%clk 0:00:02]}  e4+ {[%clk 0:00:57]} 40. Kh1 {[%clk 0:00:02]}  Qg3 {[%clk 0:00:51]} 41. Bxb5 {[%clk 0:00:03]}  Qxh3+ {[%clk 0:00:51]} 42. Qh2 {[%clk 0:00:03]}  Qf3+ {[%clk 0:00:43]} 43. Qg2 {[%clk 0:00:03]}  Qf6 {[%clk 0:00:41]} 44. Bd3 {[%clk 0:00:03]}  Qh4+ {[%clk 0:00:34]} 45. Kg1 {[%clk 0:00:03]}  Rxb1+ {[%clk 0:00:30]} 46. Bxb1 {[%clk 0:00:04]}  Qe1+ {[%clk 0:00:26]} 47. Qf1 {[%clk 0:00:04]}  Qg3+ {[%clk 0:00:26]} 48. Qg2 {[%clk 0:00:05]}  Qe3+ {[%clk 0:00:26]} 49. Qf2 {[%clk 0:00:04]}  Qc1+ {[%clk 0:00:23]} 50. Qf1 {[%clk 0:00:04]}  Qd2 {[%clk 0:00:19]} 51. Bxe4 {[%clk 0:00:03]}  Qe3+ {[%clk 0:00:19]} 52. Qf2 {[%clk 0:00:03]}  Qxe4 {[%clk 0:00:20]} 53. Qg3 {[%clk 0:00:04]}  g5 {[%clk 0:00:19]} 54. Kh2 {[%clk 0:00:03]}  Kg7 {[%clk 0:00:18]} 55. Kg1 {[%clk 0:00:04]}  Qd4+ {[%clk 0:00:18]} 56. Kf1 {[%clk 0:00:04]}  Kg6 {[%clk 0:00:18]} 57. Qf3 {[%clk 0:00:03]}  Qf4 {[%clk 0:00:17]} 0-1


[Site "https://www.chess.com"]

[Event "Titled Tuesday Blitz February 15 Late 2022"]
[White "Li, Hui"]
[Black "Bugayev, Vladimir"]
[WhiteFideId "15400310"]
[BlackFideId "30901480"]
[WhiteElo "1954"]
[BlackElo "2400"]
[Result "1-0"]
[Round "11"]
[TimeControl "180+1"]
[Date "2022.02.16"]
[WhiteClock "0:00:08"]
[BlackClock "0:00:07"]

1. e4 {[%clk 0:03:00]}  c6 {[%clk 0:03:00]} 2. d4 {[%clk 0:03:00]}  d5 {[%clk 0:03:00]} 3. Nd2 {[%clk 0:03:00]}  dxe4 {[%clk 0:03:00]} 4. Nxe4 {[%clk 0:03:01]}  Nf6 {[%clk 0:03:01]} 5. Nxf6+ {[%clk 0:03:02]}  exf6 {[%clk 0:03:02]} 6. Bc4 {[%clk 0:03:02]}  Na6 {[%clk 0:03:01]} 7. Ne2 {[%clk 0:03:00]}  Nc7 {[%clk 0:03:00]} 8. O-O {[%clk 0:03:00]}  Be6 {[%clk 0:03:00]} 9. Bxe6 {[%clk 0:03:00]}  Nxe6 {[%clk 0:03:00]} 10. c4 {[%clk 0:02:31]}  Bd6 {[%clk 0:02:51]} 11. d5 {[%clk 0:02:17]}  cxd5 {[%clk 0:02:49]} 12. Qxd5 {[%clk 0:02:11]}  O-O {[%clk 0:02:46]} 13. Qxb7 {[%clk 0:01:59]}  Nc5 {[%clk 0:02:19]} 14. Qf3 {[%clk 0:01:54]}  Rb8 {[%clk 0:02:12]} 15. b3 {[%clk 0:01:47]}  Be5 {[%clk 0:02:11]} 16. Rb1 {[%clk 0:01:47]}  Qa5 {[%clk 0:01:51]} 17. Be3 {[%clk 0:01:27]}  Ne6 {[%clk 0:01:23]} 18. Nf4 {[%clk 0:00:18]}  Qxa2 {[%clk 0:01:18]} 19. Nxe6 {[%clk 0:00:13]}  fxe6 {[%clk 0:01:18]} 20. Qc6 {[%clk 0:00:13]}  Rfe8 {[%clk 0:01:04]} 21. Qa4 {[%clk 0:00:12]}  Qxa4 {[%clk 0:00:52]} 22. bxa4 {[%clk 0:00:13]}  a6 {[%clk 0:00:52]} 23. g3 {[%clk 0:00:10]}  Rec8 {[%clk 0:00:49]} 24. c5 {[%clk 0:00:05]}  Kf7 {[%clk 0:00:42]} 25. Rb6 {[%clk 0:00:05]}  Rxb6 {[%clk 0:00:35]} 26. cxb6 {[%clk 0:00:06]}  Ke7 {[%clk 0:00:25]} 27. Rb1 {[%clk 0:00:06]}  Bb8 {[%clk 0:00:20]} 28. b7 {[%clk 0:00:06]}  Rc4 {[%clk 0:00:20]} 29. a5 {[%clk 0:00:05]}  Ra4 {[%clk 0:00:18]} 30. Bb6 {[%clk 0:00:04]}  e5 {[%clk 0:00:17]} 31. Rc1 {[%clk 0:00:03]}  Kd7 {[%clk 0:00:13]} 32. Rc8 {[%clk 0:00:03]}  Bd6 {[%clk 0:00:12]} 33. b8=Q {[%clk 0:00:03]}  Bxb8 {[%clk 0:00:13]} 34. Rxb8 {[%clk 0:00:04]}  f5 {[%clk 0:00:13]} 35. Rb7+ {[%clk 0:00:04]}  Ke6 {[%clk 0:00:14]} 36. Rxg7 {[%clk 0:00:04]}  f4 {[%clk 0:00:15]} 37. gxf4 {[%clk 0:00:04]}  exf4 {[%clk 0:00:15]} 38. Kg2 {[%clk 0:00:04]}  Ra3 {[%clk 0:00:15]} 39. Rxh7 {[%clk 0:00:03]}  f3+ {[%clk 0:00:15]} 40. Kg3 {[%clk 0:00:03]}  Kd5 {[%clk 0:00:16]} 41. Rh4 {[%clk 0:00:03]}  Ke5 {[%clk 0:00:15]} 42. Rf4 {[%clk 0:00:03]}  Ra1 {[%clk 0:00:13]} 43. Rxf3 {[%clk 0:00:03]}  Rg1+ {[%clk 0:00:14]} 44. Kh3 {[%clk 0:00:03]}  Rg8 {[%clk 0:00:14]} 45. Rg3 {[%clk 0:00:03]}  Rh8+ {[%clk 0:00:14]} 46. Kg2 {[%clk 0:00:04]}  Ke4 {[%clk 0:00:15]} 47. Rg4+ {[%clk 0:00:04]}  Kf5 {[%clk 0:00:13]} 48. Rg3 {[%clk 0:00:05]}  Ke4 {[%clk 0:00:14]} 49. h3 {[%clk 0:00:04]}  Rc8 {[%clk 0:00:12]} 50. Re3+ {[%clk 0:00:04]}  Kf4 {[%clk 0:00:12]} 51. Rf3+ {[%clk 0:00:05]}  Ke4 {[%clk 0:00:12]} 52. Rf6 {[%clk 0:00:05]}  Rg8+ {[%clk 0:00:12]} 53. Kh2 {[%clk 0:00:05]}  Rc8 {[%clk 0:00:11]} 54. Be3 {[%clk 0:00:05]}  Ke5 {[%clk 0:00:11]} 55. Rxa6 {[%clk 0:00:05]}  Rc4 {[%clk 0:00:10]} 56. Rg6 {[%clk 0:00:04]}  Ra4 {[%clk 0:00:11]} 57. Rg5+ {[%clk 0:00:04]}  Kf6 {[%clk 0:00:11]} 58. Rh5 {[%clk 0:00:04]}  Kg6 {[%clk 0:00:11]} 59. Rb5 {[%clk 0:00:04]}  Kf7 {[%clk 0:00:10]} 60. Rc5 {[%clk 0:00:03]}  Ke7 {[%clk 0:00:09]} 61. Kg2 {[%clk 0:00:03]}  Kd6 {[%clk 0:00:09]} 62. h4 {[%clk 0:00:03]}  Ra3 {[%clk 0:00:09]} 63. Rb5 {[%clk 0:00:03]}  Kc7 {[%clk 0:00:07]} 64. h5 {[%clk 0:00:03]}  Ra4 {[%clk 0:00:08]} 65. Rg5 {[%clk 0:00:03]}  Kb7 {[%clk 0:00:06]} 66. Rg7+ {[%clk 0:00:03]}  Ka6 {[%clk 0:00:06]} 67. Rg6+ {[%clk 0:00:04]}  Kb7 {[%clk 0:00:05]} 68. h6 {[%clk 0:00:04]}  Rh4 {[%clk 0:00:03]} 69. Rg7+ {[%clk 0:00:04]}  Ka6 {[%clk 0:00:04]} 70. h7 {[%clk 0:00:04]}  Kxa5 {[%clk 0:00:04]} 71. Rf7 {[%clk 0:00:04]}  Kb5 {[%clk 0:00:04]} 72. Bd4 {[%clk 0:00:03]}  Rg4+ {[%clk 0:00:03]} 73. Kf3 {[%clk 0:00:03]}  Rxd4 {[%clk 0:00:03]} 74. h8=Q {[%clk 0:00:03]}  Rd5 {[%clk 0:00:04]} 75. Qf6 {[%clk 0:00:03]}  Kc4 {[%clk 0:00:05]} 76. Kg2 {[%clk 0:00:03]}  Kc5 {[%clk 0:00:03]} 77. Qf5 {[%clk 0:00:03]}  Rxf5 {[%clk 0:00:01]} 78. Rxf5+ {[%clk 0:00:04]}  Kd6 {[%clk 0:00:02]} 79. Rf3 {[%clk 0:00:04]}  Ke6 {[%clk 0:00:03]} 80. Re3+ {[%clk 0:00:05]}  Kf5 {[%clk 0:00:03]} 81. Kf3 {[%clk 0:00:06]}  Kf6 {[%clk 0:00:03]} 82. Kf4 {[%clk 0:00:06]}  Kg6 {[%clk 0:00:03]} 83. Ke5 {[%clk 0:00:06]}  Kg5 {[%clk 0:00:03]} 84. f4+ {[%clk 0:00:07]}  Kg6 {[%clk 0:00:04]} 85. f5+ {[%clk 0:00:07]}  Kf7 {[%clk 0:00:05]} 86. f6 {[%clk 0:00:08]}  Kf8 {[%clk 0:00:06]} 87. Ra3 {[%clk 0:00:08]}  Kf7 {[%clk 0:00:06]} 88. Ra7+ {[%clk 0:00:08]}  Kf8 {[%clk 0:00:07]} 89. Ke6 {[%clk 0:00:08]}  Kg8 {[%clk 0:00:07]} 90. f7+ {[%clk 0:00:08]}  Kh7 {[%clk 0:00:08]} 91. f8=Q+ {[%clk 0:00:08]}  Kg6 {[%clk 0:00:08]} 92. Qg8+ {[%clk 0:00:08]}  Kh6 {[%clk 0:00:07]} 93. Rh7# {[%clk 0:00:08]} 1-0


[Site "https://www.chess.com"]

[Event "Titled Tuesday Blitz February 15 Late 2022"]
[White "Lin, Dachey"]
[Black "Dreev, Aleksey"]
[WhiteFideId "2029650"]
[BlackFideId "4100107"]
[WhiteElo "2777"]
[BlackElo "2636"]
[Result "1-0"]
[Round "11"]
[TimeControl "180+1"]
[Date "2022.02.16"]
[WhiteClock "0:00:08"]
[BlackClock "0:00:02"]

1. Nc3 {[%clk 0:02:48]}  c5 {[%clk 0:02:56]} 2. e4 {[%clk 0:02:49]}  Nc6 {[%clk 0:02:56]} 3. f4 {[%clk 0:02:49]}  e6 {[%clk 0:02:55]} 4. Nf3 {[%clk 0:02:50]}  d5 {[%clk 0:02:54]} 5. g3 {[%clk 0:02:48]}  d4 {[%clk 0:02:42]} 6. Ne2 {[%clk 0:02:48]}  d3 {[%clk 0:02:43]} 7. cxd3 {[%clk 0:02:44]}  Nb4 {[%clk 0:02:43]} 8. Nc3 {[%clk 0:02:37]}  Nxd3+ {[%clk 0:02:35]} 9. Bxd3 {[%clk 0:02:37]}  Qxd3 {[%clk 0:02:36]} 10. Qe2 {[%clk 0:02:36]}  Qxe2+ {[%clk 0:02:34]} 11. Kxe2 {[%clk 0:02:37]}  b6 {[%clk 0:02:29]} 12. d4 {[%clk 0:02:25]}  Nf6 {[%clk 0:02:28]} 13. Rd1 {[%clk 0:02:07]}  Ba6+ {[%clk 0:02:16]} 14. Kf2 {[%clk 0:01:44]}  cxd4 {[%clk 0:02:15]} 15. Nxd4 {[%clk 0:01:43]}  Bb4 {[%clk 0:02:10]} 16. Ndb5 {[%clk 0:01:20]}  Bc5+ {[%clk 0:01:50]} 17. Kf3 {[%clk 0:01:17]}  Bxb5 {[%clk 0:01:13]} 18. Nxb5 {[%clk 0:01:18]}  O-O {[%clk 0:01:14]} 19. Nc3 {[%clk 0:01:01]}  Bb4 {[%clk 0:01:06]} 20. Rd3 {[%clk 0:00:41]}  Rfd8 {[%clk 0:01:05]} 21. Rxd8+ {[%clk 0:00:32]}  Rxd8 {[%clk 0:01:04]} 22. Be3 {[%clk 0:00:33]}  Bxc3 {[%clk 0:01:02]} 23. bxc3 {[%clk 0:00:34]}  Rd3 {[%clk 0:00:59]} 24. Rc1 {[%clk 0:00:29]}  Ng4 {[%clk 0:00:55]} 25. Kxg4 {[%clk 0:00:29]}  Rxe3 {[%clk 0:00:55]} 26. Rd1 {[%clk 0:00:28]}  g6 {[%clk 0:00:51]} 27. Rd7 {[%clk 0:00:25]}  a5 {[%clk 0:00:39]} 28. Rb7 {[%clk 0:00:25]}  Rxc3 {[%clk 0:00:21]} 29. Rxb6 {[%clk 0:00:25]}  Rc2 {[%clk 0:00:21]} 30. h4 {[%clk 0:00:21]}  h5+ {[%clk 0:00:15]} 31. Kf3 {[%clk 0:00:14]}  Rxa2 {[%clk 0:00:13]} 32. Ra6 {[%clk 0:00:14]}  Kg7 {[%clk 0:00:12]} 33. e5 {[%clk 0:00:13]}  a4 {[%clk 0:00:12]} 34. Ra7 {[%clk 0:00:14]}  a3 {[%clk 0:00:12]} 35. Ra6 {[%clk 0:00:13]}  Ra1 {[%clk 0:00:12]} 36. Kg2 {[%clk 0:00:13]}  g5 {[%clk 0:00:11]} 37. hxg5 {[%clk 0:00:11]}  Kg6 {[%clk 0:00:12]} 38. Kh2 {[%clk 0:00:10]}  Kf5 {[%clk 0:00:11]} 39. Kg2 {[%clk 0:00:11]}  a2 {[%clk 0:00:10]} 40. Ra4 {[%clk 0:00:11]}  Kg4 {[%clk 0:00:10]} 41. Kh2 {[%clk 0:00:11]}  Kf5 {[%clk 0:00:10]} 42. Kg2 {[%clk 0:00:11]}  Kg4 {[%clk 0:00:10]} 43. Kh2 {[%clk 0:00:12]}  Kf3 {[%clk 0:00:11]} 44. Ra3+ {[%clk 0:00:12]}  Ke4 {[%clk 0:00:11]} 45. Ra4+ {[%clk 0:00:12]}  Kd3 {[%clk 0:00:10]} 46. f5 {[%clk 0:00:12]}  exf5 {[%clk 0:00:08]} 47. e6 {[%clk 0:00:12]}  fxe6 {[%clk 0:00:06]} 48. g6 {[%clk 0:00:13]}  h4 {[%clk 0:00:06]} 49. g7 {[%clk 0:00:12]}  hxg3+ {[%clk 0:00:05]} 50. Kg2 {[%clk 0:00:12]}  Rb1 {[%clk 0:00:05]} 51. g8=Q {[%clk 0:00:10]}  a1=Q {[%clk 0:00:05]} 52. Rxa1 {[%clk 0:00:10]}  Rxa1 {[%clk 0:00:06]} 53. Qxe6 {[%clk 0:00:08]}  Rd1 {[%clk 0:00:05]} 54. Qxf5+ {[%clk 0:00:08]}  Kd2 {[%clk 0:00:04]} 55. Kxg3 {[%clk 0:00:08]}  Kc1 {[%clk 0:00:04]} 56. Qf2 {[%clk 0:00:07]}  Rd2 {[%clk 0:00:04]} 57. Qe3 {[%clk 0:00:07]}  Kc2 {[%clk 0:00:05]} 58. Qc5+ {[%clk 0:00:08]}  Kd3 {[%clk 0:00:05]} 59. Kf4 {[%clk 0:00:08]}  Rc2 {[%clk 0:00:05]} 60. Qd5+ {[%clk 0:00:08]}  Kc3 {[%clk 0:00:05]} 61. Ke3 {[%clk 0:00:09]}  Kb2 {[%clk 0:00:04]} 62. Qb5+ {[%clk 0:00:09]}  Kc1 {[%clk 0:00:04]} 63. Qb4 {[%clk 0:00:09]}  Kd1 {[%clk 0:00:02]} 64. Kd3 {[%clk 0:00:08]} 1-0


[Site "https://www.chess.com"]